[Event "Live Chess"]
[Site "Chess.com"]
[Date "2023.05.21"]
[Round "-"]
[White "Tilbs_12"]
[Black "grillage"]
[Result "0-1"]
[WhiteElo "1573"]
[BlackElo "1816"]
[TimeControl "300"]
[EndTime "5:05:40 PDT"]
[Termination "grillage won by resignation"]

1. e4 {[%clk 0:04:57.2]} 1... d5 {[%clk 0:04:57.4]} 2. exd5 {[%clk 0:04:56.2]}
2... Qxd5 {[%clk 0:04:54.7]} 3. Nc3 {[%clk 0:04:55.8]} 3... Qd8 {[%clk 0:04:53]}
4. Bc4 {[%clk 0:04:54.6]} 4... Nf6 {[%clk 0:04:51.3]} 5. Nf3 {[%clk 0:04:54]}
5... a6 {[%clk 0:04:49.2]} 6. O-O {[%clk 0:04:49.5]} 6... e6 {[%clk 0:04:29.1]}
7. Re1 {[%clk 0:04:39.6]} 7... Be7 {[%clk 0:04:25.3]} 8. d3 {[%clk 0:04:27.7]}
8... O-O {[%clk 0:04:21.3]} 9. Bf4 {[%clk 0:04:22.9]} 9... b5 {[%clk 0:04:16.2]}
10. Bb3 {[%clk 0:04:21.2]} 10... Bb7 {[%clk 0:04:15.1]} 11. a4 {[%clk
0:04:14.8]} 11... b4 {[%clk 0:04:13.2]} 12. Nb1 {[%clk 0:04:10]} 12... a5 {[%clk
0:04:06]} 13. Nbd2 {[%clk 0:04:09.2]} 13... Nbd7 {[%clk 0:03:58.1]} 14. Qe2
{[%clk 0:04:07.8]} 14... Nd5 {[%clk 0:03:36.7]} 15. Bg3 {[%clk 0:04:02.5]} 15...
N7f6 {[%clk 0:03:35.2]} 16. Nd4 {[%clk 0:03:53.1]} 16... Bd6 {[%clk 0:03:24.2]}
17. Bh4 {[%clk 0:03:31.4]} 17... Qd7 {[%clk 0:03:13.9]} 18. Bxf6 {[%clk
0:03:28.1]} 18... Nxf6 {[%clk 0:03:12.1]} 19. Nc4 {[%clk 0:03:20.4]} 19... Bxh2+
{[%clk 0:02:58.3]} 20. Kxh2 {[%clk 0:03:16.4]} 20... Qxd4 {[%clk 0:02:57.3]} 21.
Qd2 {[%clk 0:02:43.7]} 21... Qh4+ {[%clk 0:02:43.8]} 22. Kg1 {[%clk 0:02:40.7]}
22... Ng4 {[%clk 0:02:36.3]} 23. Qf4 {[%clk 0:02:32.7]} 23... Qh5 {[%clk
0:02:10.7]} 24. Ne3 {[%clk 0:02:27.1]} 24... Nxe3 {[%clk 0:02:06.8]} 25. Qxe3
{[%clk 0:02:25.1]} 25... Qg6 {[%clk 0:02:05.6]} 26. Qg3 {[%clk 0:02:20.1]} 26...
Qxg3 {[%clk 0:02:03.7]} 27. fxg3 {[%clk 0:02:19.4]} 27... Rfd8 {[%clk
0:02:01.4]} 28. Re5 {[%clk 0:02:12.7]} 28... Bd5 {[%clk 0:01:49]} 29. Bxd5
{[%clk 0:02:08.1]} 29... Rxd5 {[%clk 0:01:47.9]} 30. Rxd5 {[%clk 0:02:07.4]}
30... exd5 {[%clk 0:01:47]} 31. Re1 {[%clk 0:02:06.7]} 31... Kf8 {[%clk
0:01:45.4]} 32. Re5 {[%clk 0:02:02.5]} 32... c6 {[%clk 0:01:40.9]} 33. Kf2
{[%clk 0:01:41.3]} 33... Re8 {[%clk 0:01:38.7]} 34. Re3 {[%clk 0:01:36.9]} 34...
Rxe3 {[%clk 0:01:37]} 35. Kxe3 {[%clk 0:01:36.3]} 35... Ke7 {[%clk 0:01:36.1]}
36. Kd4 {[%clk 0:01:35.5]} 36... Kd6 {[%clk 0:01:35.2]} 37. c3 {[%clk
0:01:32.6]} 37... c5+ {[%clk 0:01:33.7]} 38. Ke3 {[%clk 0:01:30.1]} 38... Ke5
{[%clk 0:01:31.5]} 39. d4+ {[%clk 0:01:18.2]} 39... cxd4+ {[%clk 0:01:29.2]} 40.
cxd4+ {[%clk 0:01:17.3]} 40... Kf5 {[%clk 0:01:25.8]} 41. Kf3 {[%clk 0:01:13.6]}
41... h5 {[%clk 0:01:24.3]} 42. b3 {[%clk 0:01:11.3]} 42... g5 {[%clk
0:01:21.9]} 43. Ke3 {[%clk 0:01:07.8]} 43... Kg4 {[%clk 0:01:20.6]} 44. Kf2
{[%clk 0:01:06.9]} 44... f5 {[%clk 0:01:15]} 0-1

[Event "Live Chess"]
[Site "Chess.com"]
[Date "2023.05.21"]
[Round "-"]
[White "friarnator"]
[Black "EdenHazard8"]
[Result "0-1"]
[WhiteElo "2010"]
[BlackElo "1932"]
[TimeControl "300"]
[EndTime "5:05:44 PDT"]
[Termination "EdenHazard8 won by resignation"]

1. d4 {[%clk 0:04:56.3]} 1... d5 {[%clk 0:04:59.2]} 2. Nc3 {[%clk 0:04:54.6]}
2... e6 {[%clk 0:04:59.1]} 3. Bf4 {[%clk 0:04:53.1]} 3... Nf6 {[%clk 0:04:59]}
4. e3 {[%clk 0:04:52.1]} 4... Bd6 {[%clk 0:04:58.9]} 5. Nf3 {[%clk 0:04:48.2]}
5... Bxf4 {[%clk 0:04:56.9]} 6. exf4 {[%clk 0:04:48.1]} 6... c5 {[%clk
0:04:55.8]} 7. Be2 {[%clk 0:04:40.8]} 7... Nc6 {[%clk 0:04:54.4]} 8. O-O {[%clk
0:04:39.2]} 8... cxd4 {[%clk 0:04:53.3]} 9. Nxd4 {[%clk 0:04:39.1]} 9... Qb6
{[%clk 0:04:52.1]} 10. Nb3 {[%clk 0:04:34.5]} 10... Bd7 {[%clk 0:04:47.6]} 11.
Bf3 {[%clk 0:04:31.8]} 11... O-O-O {[%clk 0:04:32.2]} 12. a4 {[%clk 0:04:30.1]}
12... h6 {[%clk 0:04:29.6]} 13. a5 {[%clk 0:04:24.3]} 13... Qc7 {[%clk
0:04:26.4]} 14. f5 {[%clk 0:04:14.8]} 14... g5 {[%clk 0:04:21.7]} 15. a6 {[%clk
0:03:52.3]} 15... b6 {[%clk 0:04:18.4]} 16. Nb5 {[%clk 0:03:51.1]} 16... Qb8
{[%clk 0:04:14.7]} 17. N3d4 {[%clk 0:03:29.6]} 17... Nxd4 {[%clk 0:04:10]} 18.
Nxd4 {[%clk 0:03:20]} 18... e5 {[%clk 0:04:08.5]} 19. Nb3 {[%clk 0:03:17.7]}
19... e4 {[%clk 0:04:06.7]} 20. Qd4 {[%clk 0:03:13]} 20... exf3 {[%clk
0:04:01.4]} 21. Qxf6 {[%clk 0:03:11.5]} 21... fxg2 {[%clk 0:04:01.3]} 22. Rfe1
{[%clk 0:03:02.5]} 22... Rhe8 {[%clk 0:03:54.1]} 23. Nd4 {[%clk 0:03:00.7]}
23... Qc7 {[%clk 0:03:37.9]} 24. c3 {[%clk 0:02:54.6]} 24... Re4 {[%clk
0:03:19.6]} 25. Qxf7 {[%clk 0:02:45.8]} 25... Rh4 {[%clk 0:03:14.3]} 26. Kxg2
{[%clk 0:02:17]} 26... Qxh2+ {[%clk 0:03:12.4]} 27. Kf1 {[%clk 0:02:15.7]} 27...
Rf4 {[%clk 0:03:05]} 28. Ke2 {[%clk 0:01:49.8]} 28... Qxf2+ {[%clk 0:02:59.9]}
29. Kd3 {[%clk 0:01:41.5]} 29... Rxf5 {[%clk 0:02:30.3]} 30. Qe7 {[%clk
0:00:56.1]} 30... Rf3+ {[%clk 0:02:19.1]} 31. Nxf3 {[%clk 0:00:48.1]} 31... Bf5+
{[%clk 0:02:17.5]} 0-1

[Event "Live Chess"]
[Site "Chess.com"]
[Date "2023.05.21"]
[Round "-"]
[White "Tushinskiy"]
[Black "CheckThis4"]
[Result "0-1"]
[WhiteElo "2209"]
[BlackElo "2511"]
[TimeControl "300"]
[EndTime "5:05:49 PDT"]
[Termination "CheckThis4 won on time"]

1. d4 {[%clk 0:04:57]} 1... Nf6 {[%clk 0:04:56.6]} 2. c3 {[%clk 0:04:56.9]} 2...
d6 {[%clk 0:04:51.8]} 3. Nf3 {[%clk 0:04:56.8]} 3... Nbd7 {[%clk 0:04:51]} 4.
Bf4 {[%clk 0:04:54.6]} 4... Nh5 {[%clk 0:04:46.4]} 5. Bg3 {[%clk 0:04:43.6]}
5... e5 {[%clk 0:04:41]} 6. dxe5 {[%clk 0:04:41.1]} 6... Nxg3 {[%clk 0:04:38.7]}
7. hxg3 {[%clk 0:04:40]} 7... dxe5 {[%clk 0:04:37.8]} 8. Qc2 {[%clk 0:04:38.7]}
8... h6 {[%clk 0:04:32.8]} 9. Nbd2 {[%clk 0:04:36.9]} 9... Bc5 {[%clk
0:04:30.6]} 10. e4 {[%clk 0:04:33.1]} 10... Qe7 {[%clk 0:04:25.8]} 11. Nc4
{[%clk 0:04:29.4]} 11... b5 {[%clk 0:04:21.8]} 12. Ncd2 {[%clk 0:04:26.8]} 12...
a6 {[%clk 0:04:16.4]} 13. a4 {[%clk 0:04:24.6]} 13... b4 {[%clk 0:04:07.1]} 14.
Bc4 {[%clk 0:04:22.5]} 14... O-O {[%clk 0:04:03.1]} 15. O-O {[%clk 0:04:20.5]}
15... Nf6 {[%clk 0:03:56.9]} 16. Nb3 {[%clk 0:04:16.5]} 16... Bb6 {[%clk
0:03:53.3]} 17. a5 {[%clk 0:04:11.5]} 17... Ba7 {[%clk 0:03:52.5]} 18. Rae1
{[%clk 0:04:05.5]} 18... Ng4 {[%clk 0:03:45.4]} 19. Bd5 {[%clk 0:04:01.7]} 19...
Rb8 {[%clk 0:03:41.1]} 20. c4 {[%clk 0:03:49.8]} 20... Qf6 {[%clk 0:03:35.6]}
21. c5 {[%clk 0:03:46.3]} 21... Bd7 {[%clk 0:03:19]} 22. Nh2 {[%clk 0:03:42.8]}
22... Nxh2 {[%clk 0:02:54]} 23. Kxh2 {[%clk 0:03:41.2]} 23... Ba4 {[%clk
0:02:49.9]} 24. f4 {[%clk 0:03:36.5]} 24... Rb5 {[%clk 0:02:46.7]} 25. fxe5
{[%clk 0:03:27]} 25... Qxe5 {[%clk 0:02:45.3]} 26. Rf5 {[%clk 0:03:25.8]} 26...
Qe7 {[%clk 0:02:32.3]} 27. Ref1 {[%clk 0:03:23.9]} 27... Rxc5 {[%clk 0:02:27.7]}
28. Rxf7 {[%clk 0:02:32.7]} 28... Rxf7 {[%clk 0:02:13.7]} 29. Rxf7 {[%clk
0:02:30.4]} 29... Rxc2 {[%clk 0:02:04.3]} 30. Rxe7+ {[%clk 0:02:28.4]} 30... Kf8
{[%clk 0:01:48.6]} 31. Rf7+ {[%clk 0:02:26.6]} 31... Ke8 {[%clk 0:01:46.9]} 32.
Rxg7 {[%clk 0:02:25.4]} 32... Rxb2 {[%clk 0:01:35.1]} 33. Rxc7 {[%clk
0:02:22.1]} 33... Be3 {[%clk 0:01:13.2]} 34. Nc5 {[%clk 0:02:08.1]} 34... Rc2
{[%clk 0:01:11.6]} 35. Ne6 {[%clk 0:01:57.7]} 35... Rxc7 {[%clk 0:00:53.2]} 36.
Nxc7+ {[%clk 0:01:56.2]} 36... Kd7 {[%clk 0:00:52.8]} 37. Nxa6 {[%clk
0:01:55.3]} 37... b3 {[%clk 0:00:52.4]} 38. Nb4 {[%clk 0:01:53.5]} 38... b2
{[%clk 0:00:48.5]} 39. Ba2 {[%clk 0:01:51.2]} 39... Bd2 {[%clk 0:00:39.5]} 40.
Nd5 {[%clk 0:01:37.8]} 40... Bxa5 {[%clk 0:00:37.6]} 41. Nf6+ {[%clk 0:01:32.3]}
41... Kd6 {[%clk 0:00:35]} 42. Ng4 {[%clk 0:01:30.3]} 42... Bd2 {[%clk 0:00:34]}
43. e5+ {[%clk 0:01:28.5]} 43... Ke7 {[%clk 0:00:33.2]} 44. Nf6 {[%clk
0:01:22.3]} 44... Bc2 {[%clk 0:00:31.3]} 45. Nd5+ {[%clk 0:01:19.3]} 45... Kd7
{[%clk 0:00:30]} 46. Nf6+ {[%clk 0:01:17.5]} 46... Ke7 {[%clk 0:00:28.5]} 47.
Nd5+ {[%clk 0:01:15]} 47... Kf8 {[%clk 0:00:27.5]} 48. e6 {[%clk 0:01:10.7]}
48... b1=Q {[%clk 0:00:26.8]} 49. e7+ {[%clk 0:01:09.7]} 49... Ke8 {[%clk
0:00:25.3]} 50. Bxb1 {[%clk 0:01:09.1]} 50... Bxb1 {[%clk 0:00:24.9]} 51. Kh3
{[%clk 0:01:04.8]} 51... Bg5 {[%clk 0:00:22.7]} 52. Kg4 {[%clk 0:01:02.2]} 52...
Ba2 {[%clk 0:00:22.3]} 53. Nf4 {[%clk 0:00:58.2]} 53... Kxe7 {[%clk 0:00:21.5]}
54. Kf5 {[%clk 0:00:52.3]} 54... Bb3 {[%clk 0:00:19.7]} 55. Ng6+ {[%clk
0:00:36]} 55... Kf7 {[%clk 0:00:19.2]} 56. Ne5+ {[%clk 0:00:35.2]} 56... Kg7
{[%clk 0:00:18.6]} 57. Nf3 {[%clk 0:00:31.9]} 57... Bc2+ {[%clk 0:00:18.5]} 58.
Kg4 {[%clk 0:00:31]} 58... Be3 {[%clk 0:00:16.9]} 59. Kh5 {[%clk 0:00:23.2]}
59... Bd1 {[%clk 0:00:16.8]} 60. g4 {[%clk 0:00:21.4]} 60... Bxf3 {[%clk
0:00:14.1]} 61. gxf3 {[%clk 0:00:20.5]} 61... Bg5 {[%clk 0:00:13.1]} 62. f4
{[%clk 0:00:17.7]} 62... Bxf4 {[%clk 0:00:12.5]} 63. Kh4 {[%clk 0:00:17.3]}
63... Kf6 {[%clk 0:00:12.2]} 64. Kh5 {[%clk 0:00:16.7]} 64... Ke5 {[%clk
0:00:11.2]} 65. Kh4 {[%clk 0:00:15.6]} 65... Ke4 {[%clk 0:00:10.9]} 66. Kh5
{[%clk 0:00:15.1]} 66... Kf3 {[%clk 0:00:10.5]} 67. g5 {[%clk 0:00:14.6]} 67...
hxg5 {[%clk 0:00:09.3]} 68. Kg6 {[%clk 0:00:13.8]} 68... g4 {[%clk 0:00:09.2]}
69. Kf6 {[%clk 0:00:12.7]} 69... g3 {[%clk 0:00:09.1]} 70. Ke6 {[%clk
0:00:12.5]} 70... g2 {[%clk 0:00:09]} 71. Kd5 {[%clk 0:00:12.2]} 71... g1=Q
{[%clk 0:00:08.9]} 0-1

[Event "Live Chess"]
[Site "Chess.com"]
[Date "2023.05.21"]
[Round "-"]
[White "jbooth"]
[Black "JoshMcK"]
[Result "0-1"]
[WhiteElo "1675"]
[BlackElo "1556"]
[TimeControl "300"]
[EndTime "5:05:57 PDT"]
[Termination "JoshMcK won by resignation"]

1. e4 {[%clk 0:04:57.4]} 1... c6 {[%clk 0:04:58.6]} 2. d4 {[%clk 0:04:55]} 2...
d5 {[%clk 0:04:57.6]} 3. Nc3 {[%clk 0:04:54.2]} 3... dxe4 {[%clk 0:04:52.5]} 4.
Nxe4 {[%clk 0:04:53.6]} 4... Nf6 {[%clk 0:04:52.1]} 5. Nxf6+ {[%clk 0:04:52.1]}
5... exf6 {[%clk 0:04:52]} 6. c3 {[%clk 0:04:47.4]} 6... Bd6 {[%clk 0:04:51.2]}
7. Bd3 {[%clk 0:04:46.2]} 7... O-O {[%clk 0:04:50.6]} 8. Ne2 {[%clk 0:04:45.1]}
8... Re8 {[%clk 0:04:49.2]} 9. O-O {[%clk 0:04:44.6]} 9... Bg4 {[%clk
0:04:47.8]} 10. f3 {[%clk 0:04:41.6]} 10... Bh5 {[%clk 0:04:46.2]} 11. Kh1
{[%clk 0:04:40.2]} 11... Qc7 {[%clk 0:04:40.9]} 12. Qe1 {[%clk 0:04:22]} 12...
Bxh2 {[%clk 0:04:36]} 13. Qh4 {[%clk 0:04:18.3]} 13... Bg6 {[%clk 0:04:15.7]}
14. Bxg6 {[%clk 0:04:15]} 14... fxg6 {[%clk 0:04:12.4]} 15. Qxh2 {[%clk
0:04:09.8]} 15... Qxh2+ {[%clk 0:04:10.2]} 16. Kxh2 {[%clk 0:04:09.2]} 16...
Rxe2 {[%clk 0:04:09.5]} 17. Kg3 {[%clk 0:03:57.8]} 17... Nd7 {[%clk 0:04:04.1]}
18. Rf2 {[%clk 0:03:56.9]} 18... Rxf2 {[%clk 0:04:02.3]} 19. Kxf2 {[%clk
0:03:54.4]} 19... Re8 {[%clk 0:03:59.9]} 20. b3 {[%clk 0:03:52]} 20... f5 {[%clk
0:03:52.9]} 21. Ba3 {[%clk 0:03:48.3]} 21... Nf6 {[%clk 0:03:50.7]} 22. Re1
{[%clk 0:03:43.4]} 22... Rxe1 {[%clk 0:03:47.9]} 23. Kxe1 {[%clk 0:03:43]} 23...
g5 {[%clk 0:03:42.3]} 24. Be7 {[%clk 0:03:34.8]} 24... Kf7 {[%clk 0:03:40.7]}
25. Bxf6 {[%clk 0:03:33.3]} 25... gxf6 {[%clk 0:03:36.6]} 26. Ke2 {[%clk
0:03:32.6]} 26... f4 {[%clk 0:03:34.3]} 27. a4 {[%clk 0:03:25.5]} 27... Ke6
{[%clk 0:03:32.9]} 28. Kd3 {[%clk 0:03:18.8]} 28... f5 {[%clk 0:03:29.7]} 29. b4
{[%clk 0:03:15.5]} 29... h5 {[%clk 0:03:27.4]} 30. c4 {[%clk 0:03:14.1]} 30...
b6 {[%clk 0:03:25.2]} 31. a5 {[%clk 0:03:11.6]} 31... g4 {[%clk 0:03:23.3]} 32.
axb6 {[%clk 0:03:06.5]} 32... axb6 {[%clk 0:03:21.8]} 33. b5 {[%clk 0:03:04.6]}
33... cxb5 {[%clk 0:03:19.1]} 34. cxb5 {[%clk 0:03:02.5]} 34... Kd5 {[%clk
0:03:17.9]} 35. Kc3 {[%clk 0:02:59.5]} 35... gxf3 {[%clk 0:03:15.2]} 36. gxf3
{[%clk 0:02:57.3]} 36... h4 {[%clk 0:03:14.3]} 37. Kd3 {[%clk 0:02:52.6]} 37...
h3 {[%clk 0:03:12.7]} 38. Ke2 {[%clk 0:02:52.2]} 38... h2 {[%clk 0:03:09.8]} 0-1

[Event "Live Chess"]
[Site "Chess.com"]
[Date "2023.05.21"]
[Round "-"]
[White "Leonid_Starozhilov"]
[Black "viktorskliarov"]
[Result "1/2-1/2"]
[WhiteElo "2633"]
[BlackElo "2648"]
[TimeControl "300"]
[EndTime "5:05:57 PDT"]
[Termination "Game drawn by agreement"]

1. e4 {[%clk 0:04:58.7]} 1... c5 {[%clk 0:04:58.5]} 2. Nf3 {[%clk 0:04:57.4]}
2... Nc6 {[%clk 0:04:53]} 3. d4 {[%clk 0:04:55.4]} 3... cxd4 {[%clk 0:04:51.4]}
4. Nxd4 {[%clk 0:04:55.3]} 4... Nf6 {[%clk 0:04:50.8]} 5. Nc3 {[%clk 0:04:54.5]}
5... e5 {[%clk 0:04:49.4]} 6. Ndb5 {[%clk 0:04:53.1]} 6... d6 {[%clk 0:04:48.5]}
7. Bg5 {[%clk 0:04:49.8]} 7... a6 {[%clk 0:04:46.8]} 8. Na3 {[%clk 0:04:49.1]}
8... b5 {[%clk 0:04:45.7]} 9. Nd5 {[%clk 0:04:47.3]} 9... Be7 {[%clk 0:04:44.9]}
10. Bxf6 {[%clk 0:04:46.8]} 10... Bxf6 {[%clk 0:04:44.8]} 11. c3 {[%clk
0:04:46.2]} 11... O-O {[%clk 0:04:43.7]} 12. Nc2 {[%clk 0:04:45.1]} 12... Rb8
{[%clk 0:04:43.2]} 13. h4 {[%clk 0:04:40.2]} 13... g6 {[%clk 0:04:38.4]} 14. g3
{[%clk 0:04:37]} 14... h5 {[%clk 0:04:33]} 15. Be2 {[%clk 0:04:33]} 15... Bg7
{[%clk 0:04:30.8]} 16. O-O {[%clk 0:04:25.6]} 16... Ne7 {[%clk 0:04:29.4]} 17.
Nce3 {[%clk 0:04:22.5]} 17... Nxd5 {[%clk 0:04:22.1]} 18. Nxd5 {[%clk
0:04:22.4]} 18... Be6 {[%clk 0:04:20.9]} 19. a4 {[%clk 0:04:17.6]} 19... bxa4
{[%clk 0:04:19]} 20. Nb4 {[%clk 0:03:56.3]} 20... Bb3 {[%clk 0:04:08.9]} 21. Qd2
{[%clk 0:03:46.9]} 21... Rb6 {[%clk 0:04:07.3]} 1/2-1/2

[Event "Live Chess"]
[Site "Chess.com"]
[Date "2023.05.21"]
[Round "-"]
[White "GwaryTek"]
[Black "jumush"]
[Result "1-0"]
[WhiteElo "2065"]
[BlackElo "1733"]
[TimeControl "300"]
[EndTime "5:06:16 PDT"]
[Termination "GwaryTek won by resignation"]

1. d4 {[%clk 0:04:57.9]} 1... d5 {[%clk 0:04:58.3]} 2. c4 {[%clk 0:04:56.4]}
2... e6 {[%clk 0:04:55.6]} 3. Nc3 {[%clk 0:04:56.3]} 3... c5 {[%clk 0:04:54.2]}
4. Nf3 {[%clk 0:04:56.2]} 4... Nc6 {[%clk 0:04:51.5]} 5. cxd5 {[%clk 0:04:56.1]}
5... exd5 {[%clk 0:04:50.1]} 6. Bg5 {[%clk 0:04:53.6]} 6... Be7 {[%clk
0:04:48.3]} 7. Bxe7 {[%clk 0:04:52.2]} 7... Ngxe7 {[%clk 0:04:45.9]} 8. dxc5
{[%clk 0:04:50.5]} 8... d4 {[%clk 0:04:41.6]} 9. Ne4 {[%clk 0:04:48.4]} 9...
Qa5+ {[%clk 0:04:39.4]} 10. Qd2 {[%clk 0:04:47.2]} 10... Qxd2+ {[%clk
0:04:29.5]} 11. Kxd2 {[%clk 0:04:47.1]} 11... O-O {[%clk 0:04:27.8]} 12. Rc1
{[%clk 0:04:43.7]} 12... Bf5 {[%clk 0:04:24.1]} 13. Nd6 {[%clk 0:04:41.5]} 13...
Bg6 {[%clk 0:04:21.8]} 14. b3 {[%clk 0:04:35]} 14... Rab8 {[%clk 0:04:19.5]} 15.
g3 {[%clk 0:04:25.6]} 15... Rfd8 {[%clk 0:04:16.6]} 16. Nh4 {[%clk 0:04:08.5]}
16... b6 {[%clk 0:04:14.3]} 17. Nxg6 {[%clk 0:04:06.8]} 17... Nxg6 {[%clk
0:04:12.5]} 18. Ne4 {[%clk 0:04:05.1]} 18... f5 {[%clk 0:04:07]} 19. Ng5 {[%clk
0:03:41.8]} 19... bxc5 {[%clk 0:03:57.7]} 20. Rxc5 {[%clk 0:03:39.5]} 20... Nb4
{[%clk 0:03:53.5]} 21. Bg2 {[%clk 0:03:25.9]} 21... Nxa2 {[%clk 0:03:51.2]} 22.
Bd5+ {[%clk 0:03:24.2]} 22... Kf8 {[%clk 0:03:47.7]} 23. Ne6+ {[%clk 0:03:22.5]}
23... Ke7 {[%clk 0:03:45.2]} 24. Nxd8 {[%clk 0:03:21.3]} 24... Rxd8 {[%clk
0:03:43.5]} 25. Ra1 {[%clk 0:03:17.8]} 25... Nb4 {[%clk 0:03:41.2]} 26. Rxa7+
{[%clk 0:03:13.1]} 26... Kd6 {[%clk 0:03:38.5]} 27. Raa5 {[%clk 0:03:01.5]}
27... Ne7 {[%clk 0:03:25.5]} 28. Bc4 {[%clk 0:02:55.8]} 28... g6 {[%clk
0:03:20.2]} 29. Rcb5 {[%clk 0:02:39.7]} 29... Nbc6 {[%clk 0:03:13.2]} 30. Ra6
{[%clk 0:02:30.5]} 30... Kc7 {[%clk 0:03:07.9]} 31. Rc5 {[%clk 0:01:58.1]} 31...
Kd6 {[%clk 0:03:03.4]} 32. Rcxc6+ {[%clk 0:01:54.5]} 32... Nxc6 {[%clk
0:03:01.4]} 33. Bb5 {[%clk 0:01:53.6]} 33... Rc8 {[%clk 0:02:59.7]} 34. Kd3
{[%clk 0:01:50.5]} 34... Kc5 {[%clk 0:02:57.7]} 35. Bxc6 {[%clk 0:01:48.1]}
35... Rxc6 {[%clk 0:02:55.9]} 36. Rxc6+ {[%clk 0:01:47.1]} 36... Kxc6 {[%clk
0:02:54.5]} 37. Kxd4 {[%clk 0:01:47]} 1-0

[Event "Live Chess"]
[Site "Chess.com"]
[Date "2023.05.21"]
[Round "-"]
[White "Nazar_777"]
[Black "RockTroll"]
[Result "0-1"]
[WhiteElo "1557"]
[BlackElo "2221"]
[TimeControl "300"]
[EndTime "5:06:19 PDT"]
[Termination "RockTroll won by checkmate"]

1. e3 {[%clk 0:04:57.7]} 1... Nf6 {[%clk 0:04:59.2]} 2. h4 {[%clk 0:04:49.6]}
2... g6 {[%clk 0:04:59.1]} 3. a3 {[%clk 0:04:49]} 3... h5 {[%clk 0:04:57.7]} 4.
c4 {[%clk 0:04:48.3]} 4... d6 {[%clk 0:04:57.5]} 5. Nc3 {[%clk 0:04:47.7]} 5...
c5 {[%clk 0:04:50.3]} 6. Be2 {[%clk 0:04:46.9]} 6... Nc6 {[%clk 0:04:47.9]} 7.
Qc2 {[%clk 0:04:46]} 7... Bf5 {[%clk 0:04:45.4]} 8. Bd3 {[%clk 0:04:44.7]} 8...
Bxd3 {[%clk 0:04:43.4]} 9. Qxd3 {[%clk 0:04:43.7]} 9... Bg7 {[%clk 0:04:41.3]}
10. Qc2 {[%clk 0:04:42.5]} 10... O-O {[%clk 0:04:38.9]} 11. b3 {[%clk
0:04:41.7]} 11... a6 {[%clk 0:04:37]} 12. Bb2 {[%clk 0:04:40.8]} 12... Rb8
{[%clk 0:04:34.1]} 13. Rc1 {[%clk 0:04:40]} 13... b5 {[%clk 0:04:33.1]} 14. cxb5
{[%clk 0:04:38.9]} 14... axb5 {[%clk 0:04:32.3]} 15. Nf3 {[%clk 0:04:37.9]}
15... b4 {[%clk 0:04:31.6]} 16. Nb1 {[%clk 0:04:30.4]} 16... bxa3 {[%clk
0:04:27]} 17. Nxa3 {[%clk 0:04:27.9]} 17... Nb4 {[%clk 0:04:26]} 18. Qb1 {[%clk
0:04:24.4]} 18... Qa5 {[%clk 0:04:23.5]} 19. Nc4 {[%clk 0:04:22.4]} 19... Qb5
{[%clk 0:04:20.6]} 20. Ng5 {[%clk 0:04:18.8]} 20... d5 {[%clk 0:04:18.4]} 21.
Na3 {[%clk 0:04:11.2]} 21... Nd3+ {[%clk 0:04:16.1]} 22. Kd1 {[%clk 0:04:09.8]}
22... Qxb3+ {[%clk 0:04:14.3]} 23. Qc2 {[%clk 0:04:06.7]} 23... Nxb2+ {[%clk
0:04:12.1]} 24. Ke2 {[%clk 0:04:02.2]} 24... Qxa3 {[%clk 0:04:10]} 25. g4 {[%clk
0:03:59.5]} 25... Qa6+ {[%clk 0:04:08.6]} 26. Kf3 {[%clk 0:03:57.3]} 26... hxg4+
{[%clk 0:04:06.1]} 27. Kg2 {[%clk 0:03:56]} 27... Nd3 {[%clk 0:04:02.7]} 28. h5
{[%clk 0:03:53.4]} 28... Nxc1 {[%clk 0:04:00]} 29. hxg6 {[%clk 0:03:50.9]} 29...
Qd3 {[%clk 0:03:57.4]} 30. Qxc1 {[%clk 0:03:39.9]} 30... Qxg6 {[%clk 0:03:53.2]}
31. f4 {[%clk 0:03:33.7]} 31... gxf3+ {[%clk 0:03:51.7]} 32. Kxf3 {[%clk
0:03:30.9]} 32... Qxg5 {[%clk 0:03:51]} 33. Ke2 {[%clk 0:03:29.7]} 33... Qg2+
{[%clk 0:03:49.1]} 34. Kd3 {[%clk 0:03:28.4]} 34... c4+ {[%clk 0:03:48.2]} 35.
Kc3 {[%clk 0:03:27.1]} 35... Ne4+ {[%clk 0:03:47.3]} 36. Kc2 {[%clk 0:03:23.7]}
36... c3 {[%clk 0:03:40.9]} 37. Qd1 {[%clk 0:03:21.4]} 37... Rb2+ {[%clk
0:03:39]} 38. Kd3 {[%clk 0:03:18.9]} 38... Rxd2+ {[%clk 0:03:37.1]} 39. Qxd2
{[%clk 0:03:17.5]} 39... Qxd2# {[%clk 0:03:36.8]} 0-1

[Event "Live Chess"]
[Site "Chess.com"]
[Date "2023.05.21"]
[Round "-"]
[White "LiamClery2020"]
[Black "TheAuditer"]
[Result "1-0"]
[WhiteElo "1979"]
[BlackElo "1398"]
[TimeControl "300"]
[EndTime "5:06:33 PDT"]
[Termination "LiamClery2020 won by resignation"]

1. e4 {[%clk 0:04:59]} 1... e6 {[%clk 0:04:59.1]} 2. d4 {[%clk 0:04:57.6]} 2...
d5 {[%clk 0:04:58.6]} 3. Nd2 {[%clk 0:04:56.7]} 3... Nf6 {[%clk 0:04:55.6]} 4.
e5 {[%clk 0:04:53.1]} 4... Nfd7 {[%clk 0:04:54.5]} 5. Ngf3 {[%clk 0:04:52.7]}
5... c5 {[%clk 0:04:53.7]} 6. c3 {[%clk 0:04:48.9]} 6... Nc6 {[%clk 0:04:52.2]}
7. Bd3 {[%clk 0:04:46.8]} 7... cxd4 {[%clk 0:04:50.1]} 8. cxd4 {[%clk
0:04:45.7]} 8... Qb6 {[%clk 0:04:45.8]} 9. O-O {[%clk 0:04:44.5]} 9... Nxd4
{[%clk 0:04:39.7]} 10. Nxd4 {[%clk 0:04:44.4]} 10... Qxd4 {[%clk 0:04:37.6]} 11.
Nf3 {[%clk 0:04:44.3]} 11... Qg4 {[%clk 0:04:29.4]} 12. h3 {[%clk 0:04:40.7]}
12... Qb4 {[%clk 0:04:21.9]} 13. Qc2 {[%clk 0:04:38.7]} 13... Qc5 {[%clk
0:04:16.6]} 14. Bxh7 {[%clk 0:04:34.3]} 14... Qxc2 {[%clk 0:04:07.7]} 15. Bxc2
{[%clk 0:04:34.2]} 15... Be7 {[%clk 0:03:59.8]} 16. Bf4 {[%clk 0:04:31.5]} 16...
b6 {[%clk 0:03:49.6]} 17. Rac1 {[%clk 0:04:29]} 17... Ba6 {[%clk 0:03:39.9]} 18.
Rfe1 {[%clk 0:04:27.5]} 18... Rc8 {[%clk 0:03:37.3]} 19. Ba4 {[%clk 0:04:21.7]}
19... Rc4 {[%clk 0:03:15.4]} 20. Rxc4 {[%clk 0:04:16.9]} 20... Bxc4 {[%clk
0:03:14.3]} 21. Rc1 {[%clk 0:04:11.2]} 21... Kd8 {[%clk 0:02:55.1]} 22. Nd4
{[%clk 0:04:03.3]} 22... Bc5 {[%clk 0:02:36.5]} 23. Nc6+ {[%clk 0:03:59.4]}
23... Kc7 {[%clk 0:02:27.8]} 24. b3 {[%clk 0:03:58.2]} 24... Ba6 {[%clk
0:02:14.7]} 25. b4 {[%clk 0:03:56.1]} 25... Bxb4 {[%clk 0:01:59.3]} 26. Nxb4+
{[%clk 0:03:53.3]} 1-0